fUSD/lending_fUSD_20250205
["ID","MTS","AMOUNT","RATE_DAILY","PERIOD"]
[351690726,1738738243857,-501.65966671,0.00011481,2]
[351690727,1738738243867,-500.0,0.00011481,2]
[351690728,1738738243876,-500.0,0.00011481,2]
[351690729,1738738243886,-500.0,0.00011481,2]
[351690730,1738738243895,-532.55,0.00011481,2]
[351690731,1738738243905,-503.85830722,0.00011495,2]
[351690732,1738738243915,-505.20255607,0.00011495,2]
[351690733,1738738243925,-506.56672332,0.00011495,2]
[351690734,1738738243935,-501.21418404,0.00011495,2]
[351690735,1738738243945,-504.44759412,0.00011495,2]
[351690736,1738738243956,-500.0,0.00011495,2]
[351690737,1738738243966,-314.66,0.00011496,2]
[351690738,1738738243976,-287.33,0.00011496,2]
[351690739,1738738243985,-500.0,0.00011496,2]
[351690740,1738738243995,-433.53,0.00011496,2]
[351690741,1738738244006,-233.25,0.00011496,2]
[351690742,1738738244016,-403.8,0.00011496,2]
[351690743,1738738244027,-500.0,0.00011496,2]
[351690744,1738738244038,-196.34,0.00011496,2]
[351690745,1738738244048,-500.0,0.00011496,2]
[351690746,1738738244058,-560.83,0.00011496,2]
[351690747,1738738244068,-578.05,0.00011496,2]
[351690748,1738738244077,-456.65,0.00011496,2]
[351690749,1738738244087,-394.96,0.00011496,2]
[351690750,1738738244098,-500.0,0.00011496,2]
[351690751,1738738244107,-151.13404009,0.00011496,2]
[351690752,1738738244115,-409.79,0.00011496,2]
[351690753,1738738244125,-606.37,0.00011496,2]
[351690754,1738738244134,-500.0,0.00011496,2]
[351690755,1738738244143,-500.0,0.00011496,2]
[351690756,1738738244152,-500.0,0.00011496,2]
[351690757,1738738244161,-502.16750695,0.00011496,2]
[351690758,1738738244170,-520.87,0.00011496,2]
[351690759,1738738244179,-500.0,0.00011496,2]
[351690760,1738738244189,-500.0,0.00011496,2]
[351690761,1738738244198,-500.0,0.00011496,2]
[351690762,1738738244207,-500.0,0.00011496,2]
[351690763,1738738244217,-500.0,0.00011496,2]
[351690764,1738738244226,-500.0,0.00011496,2]
[351690765,1738738244236,-500.0,0.00011496,2]
[351690766,1738738244249,-284.09,0.00011496,2]
[351690767,1738738244261,-181.31,0.00011496,2]
[351690768,1738738244281,-500.0,0.00011496,2]
[351690769,1738738244296,-537.32679574,0.00011496,2]
[351690770,1738738244305,-500.0,0.00011496,2]
[351690771,1738738244315,-500.0,0.00011497,2]
[351690772,1738738244326,-403.64114051,0.00011497,2]
[351690773,1738738244336,-500.0,0.00011497,2]
[351690774,1738738244345,-500.0,0.00011497,2]
[351690775,1738738244354,-380.51,0.00011497,2]
[351690776,1738738244363,-500.0,0.00011497,2]
[351690777,1738738244373,-467.64722887,0.00011497,2]
[351690778,1738738244382,-500.0,0.00011497,2]
[351690779,1738738244391,-500.0,0.00011497,2]
[351690780,1738738244401,-500.0,0.00011498,2]
[351690781,1738738244410,-500.0,0.00011498,2]
[351690782,1738738244420,-500.0,0.00011498,2]
[351690783,1738738244431,-500.0,0.00011498,2]
[351690784,1738738244440,-500.0,0.00011498,2]
[351690785,1738738244449,-1320.03,0.00011498,2]
[351690786,1738738244458,-500.0,0.00011498,2]
[351690787,1738738244467,-500.0,0.00011498,2]
[351690788,1738738244476,-505.13507941,0.00011498,2]
[351690789,1738738244486,-500.0,0.00011498,2]
[351690790,1738738244495,-500.0,0.00011498,2]
[351690791,1738738244505,-503.83422202,0.00011498,2]
[351690792,1738738244514,-500.0,0.00011498,2]
[351690793,1738738244523,-517.57326498,0.00011498,2]
[351690794,1738738244532,-500.0,0.00011498,2]
[351690795,1738738244542,-504.22486566,0.00011498,2]
[351690796,1738738244551,-345.81,0.00011498,2]
[351690797,1738738244561,-500.0,0.00011498,2]
[351690798,1738738244571,-500.0,0.00011498,2]
[351690799,1738738244581,-500.0,0.00011498,2]
[351690800,1738738244590,-500.0,0.00011498,2]
[351690801,1738738244600,-500.0,0.00011498,2]
[351690802,1738738244610,-500.0,0.00011498,2]
[351690803,1738738244619,-500.0,0.00011498,2]
[351690804,1738738244629,-500.0,0.00011498,2]
[351690805,1738738244638,-500.0,0.00011498,2]
[351690806,1738738244647,-262.58,0.00011498,2]
[351690807,1738738244657,-588.69,0.00011498,2]
[351690808,1738738244666,-445.93,0.00011498,2]
[351690809,1738738244675,-350.93,0.00011498,2]
[351690810,1738738244685,-500.0,0.00011498,2]
[351690811,1738738244695,-500.0,0.00011498,2]
[351690812,1738738244704,-500.0,0.00011498,2]
[351690813,1738738244714,-500.0,0.00011498,2]
[351690814,1738738244723,-346.31755534,0.00011498,2]
[351690815,1738738244732,-500.0,0.00011498,2]
[351690816,1738738244742,-500.0,0.00011498,2]
[351690817,1738738244752,-500.0,0.00011498,2]
[351690818,1738738244761,-500.0,0.00011498,2]
[351690819,1738738244771,-504.11065807,0.00011498,2]
[351690820,1738738244780,-500.0,0.00011498,2]
[351690821,1738738244790,-500.0,0.00011498,2]
[351690822,1738738244800,-500.0,0.00011498,2]
[351690823,1738738244809,-500.0,0.00011498,2]
[351690824,1738738244819,-508.36660765,0.00011498,2]
[351690825,1738738244827,-500.0,0.00011498,2]
[351690826,1738738244836,-500.0,0.00011498,2]
[351690827,1738738244845,-531.96154035,0.00011498,2]
[351690828,1738738244854,-619.12,0.00011498,2]
[351690829,1738738244863,-509.3736378,0.00011498,2]
[351690830,1738738244871,-501.86638706,0.00011498,2]
[351690831,1738738244880,-500.0,0.00011498,2]
[351690832,1738738244889,-500.0,0.00011498,2]
[351690833,1738738244898,-500.0,0.00011498,2]
[351690834,1738738244907,-500.0,0.00011498,2]
[351690835,1738738244916,-500.0,0.00011498,2]
[351690836,1738738244925,-500.0,0.00011498,2]
[351690837,1738738244934,-500.0,0.00011498,2]
[351690838,1738738244943,-500.0,0.00011498,2]
[351690839,1738738244952,-500.0,0.00011498,2]
[351690840,1738738244961,-500.0,0.00011498,2]
[351690841,1738738244970,-489.26,0.00011498,2]
[351690842,1738738244979,-500.0,0.00011498,2]
[351690843,1738738244988,-497.06,0.00011498,2]
[351690844,1738738244997,-500.0,0.00011498,2]
[351690845,1738738245005,-500.0,0.00011498,2]
[351690846,1738738245188,-500.0,0.00011498,2]
[351690847,1738738245198,-500.0,0.00011498,2]
[351690848,1738738245207,-9942.76531941,0.00011498,2]
[351690849,1738738245393,-1406.09166,0.00011498,2]
[351690850,1738738245406,-1228.49761,0.00011498,2]
[351690862,1738738246076,-514.658145,0.00011498,2]
[351690863,1738738246211,-26.00781031,0.00011498,2]
[351690864,1738738246221,-462.67633739,0.00011498,2]
[351690865,1738738246232,-964960.59219641,0.00011498,2]
[351690866,1738738246344,-1143.52601599,0.00011498,2]
[351690867,1738738246355,-294.70240754,0.00011498,2]
[351690868,1738738246367,-405994.64702132,0.00011498,2]
[351690869,1738738246378,-253.32728029,0.00011498,2]
[351690870,1738738246419,-64.31256447,0.00011498,2]
[351690871,1738738246463,-30.26124507,0.00011498,2]
[351690872,1738738246520,-547.18607351,0.00011498,2]
[351690873,1738738246532,-3060.15735247,0.00011498,2]
[351690877,1738738287247,500.0,8.22e-05,2]
[351690880,1738738438182,893.26,8.636e-05,2]
[351690906,1738739075344,-500.0,9.59e-05,2]
[351690907,1738739075367,-3052.73,9.8e-05,2]
[351690908,1738739075388,-185.291,9.8e-05,2]
[351690909,1738739075410,-500.0,9.973e-05,2]
[351690910,1738739075432,-150.0,9.998e-05,2]
[351690911,1738739075456,-500.0,9.999e-05,2]
[351690912,1738739075483,-500.0,9.999e-05,2]
[351690913,1738739075507,-500.0,9.999e-05,2]
[351690914,1738739075752,-500.0,9.999e-05,2]
[351690915,1738739075775,-500.0,9.999e-05,2]
[351690916,1738739075800,-500.0,9.999e-05,2]
[351690917,1738739075824,-500.0,9.999e-05,2]
[351690918,1738739075845,-326.83909987,9.999e-05,2]
[351690919,1738739075867,-500.0,9.999e-05,2]
[351690920,1738739075889,-438.78,9.999e-05,2]
[351690921,1738739075911,-500.0,9.999e-05,2]
[351690922,1738739075933,-269.67,9.999e-05,2]
[351690923,1738739075955,-76.68990013,9.999e-05,2]
[351690924,1738739107194,500.0,8.22e-05,2]
[351690926,1738739299482,848.59,8.219e-05,2]
[351690927,1738739360140,-500.0,9.59e-05,2]
[351690928,1738739360161,-630.0,9.979e-05,2]
[351690929,1738739360182,-309.88,9.992e-05,2]
[351690930,1738739360203,-300.0,9.998e-05,2]
[351690931,1738739360425,-346.88,9.999e-05,2]
[351690932,1738739360448,-289.37,9.999e-05,2]
[351690933,1738739360470,-295.44,9.999e-05,2]
[351690934,1738739360492,-332.9,9.999e-05,2]
[351690935,1738739360513,-482.17284415,9.999e-05,2]
[351690937,1738739387290,500.0,8.22e-05,2]
[351690938,1738739432332,-300.0,9.998e-05,2]
[351690939,1738739432342,-822.32715585,9.999e-05,2]
[351690940,1738739432351,-354.1146589,9.999e-05,2]
[351690941,1738739432361,-138.5753411,9.999e-05,2]
[351690942,1738739432371,-500.0,9.999e-05,2]
[351690943,1738739432381,-370.34,9.999e-05,2]
[351690944,1738739432390,-173.88,9.999e-05,2]
[351690945,1738739432399,-165.25509171,9.999e-05,2]
[351690946,1738739432408,-161.9760974,9.999e-05,2]
[351690947,1738739432418,-500.0,9.999e-05,2]
[351690948,1738739432427,-367.47865422,9.999e-05,2]
[351690949,1738739432436,-236.98,9.999e-05,2]
[351690950,1738739432445,-649.95275104,9.999e-05,2]
[351690951,1738739432455,-500.0,9.999e-05,2]
[351690952,1738739432464,-335.56206453,9.999e-05,2]
[351690953,1738739432726,-164.43793547,9.999e-05,2]
[351690954,1738739432736,-500.0,9.999e-05,2]
[351690955,1738739432745,-361.12024978,9.999e-05,2]
[351690956,1738739432757,-138.87975022,9.999e-05,2]
[351690957,1738739432767,-500.0,9.999e-05,2]
[351690958,1738739432777,-500.0,9.999e-05,2]
[351690960,1738739432787,-500.0,9.999e-05,2]
[351690961,1738739432796,-500.0,9.999e-05,2]
[351690962,1738739432805,-194.12023915,9.999e-05,2]
[351691199,1738739438244,-305.87976085,9.999e-05,2]
[351691200,1738739438253,-284.92,9.999e-05,2]
[351691201,1738739438262,-179.95,9.999e-05,2]
[351691202,1738739438271,-500.0,9.999e-05,2]
[351691203,1738739438279,-500.0,9.999e-05,2]
[351691204,1738739438288,-500.0,9.999e-05,2]
[351691205,1738739438297,-496.24,9.999e-05,2]
[351691206,1738739438306,-165.68,9.999e-05,2]
[351691207,1738739438315,-500.0,9.999e-05,2]
[351691208,1738739438324,-500.0,9.999e-05,2]
[351691209,1738739438334,-500.0,9.999e-05,2]
[351691210,1738739438344,-500.0,9.999e-05,2]
[351691211,1738739438353,-286.91,9.999e-05,2]
[351691212,1738739438362,-500.0,9.999e-05,2]
[351691213,1738739438371,-500.0,9.999e-05,2]
[351691214,1738739438380,-500.0,9.999e-05,2]
[351691215,1738739438389,-343.95069158,9.999e-05,2]
[351691216,1738739438398,-500.0,9.999e-05,2]
[351691217,1738739438407,-500.0,9.999e-05,2]
[351691218,1738739438416,-500.0,9.999e-05,2]
[351691219,1738739438425,-500.0,9.999e-05,2]
[351691220,1738739438435,-500.0,9.999e-05,2]
[351691221,1738739438445,-500.0,9.999e-05,2]
[351691222,1738739438454,-489.55,9.999e-05,2]
[351691223,1738739438463,-500.0,9.999e-05,2]
[351691224,1738739438473,-500.0,9.999e-05,2]
[351691225,1738739438483,-500.0,9.999e-05,2]
[351691226,1738739438493,-500.0,9.999e-05,2]
[351691227,1738739438503,-500.0,9.999e-05,2]
[351691228,1738739438513,-500.0,9.999e-05,2]
[351691229,1738739438522,-500.0,9.999e-05,2]
[351691230,1738739438532,-500.0,9.999e-05,2]
[351691231,1738739438541,-500.0,9.999e-05,2]
[351691232,1738739438550,-329.73858098,9.999e-05,2]
[351691233,1738739438560,-735.37951501,0.0001,2]
[351691234,1738739438576,-31344.0,0.0001,2]
[351691235,1738739438590,-114478.73302573,0.0001,2]
[351691236,1738739438607,-6633.7647184,0.0001,2]
[351691237,1738739438618,-1714.3699086,0.0001,2]
[351691238,1738739438630,-3374.0376176,0.0001,2]
[351691240,1738739440175,-1370.28364563,0.0001,2]
[351691249,1738739440282,-73968.38232022,0.0001,2]
[351691252,1738739440446,-1416.82819968,0.0001,2]
[351691253,1738739440458,-11593.8640721,0.0001,2]
[351691254,1738739440469,-624.79062538,0.0001,2]
[351691255,1738739440480,-365.78550015,0.0001,2]
[351691256,1738739440491,-3476.04207273,0.0001,2]
[351691265,1738739443333,-9026.91560782,0.0001,2]
[351691266,1738739443344,-5057.2,0.0001,2]
[351691267,1738739443510,-500.0,0.0001,2]
[351691268,1738739443521,-332844.02832444,0.0001,2]
[351691269,1738739443531,-1076.45830161,0.0001,2]
[351691277,1738739446429,-427.69402666,9.999e-05,2]
[351691278,1738739446489,-72.30597334,9.999e-05,2]
[351691279,1738739446499,-1626.71282666,0.0001,2]
[351691280,1738739446542,-223848.02490207,0.0001,2]
[351691281,1738739446714,-3504.65738607,0.0001,2]
[351691282,1738739446726,-1381.58118642,0.0001,2]
[351691283,1738739446739,-5481.20000004,0.0001,2]
[351691284,1738739446750,-820.88841262,0.0001,2]
[351691285,1738739446761,-2465.18803461,0.0001,2]
[351691286,1738739457864,10000.0,0.000181,90]
[351691287,1738739477251,10000.0,0.000181,90]
[351691288,1738739504883,10000.0,0.000181,90]
[351691289,1738739520309,8187.18,0.000181,90]
[351691290,1738739525122,-600.0,9.999e-05,2]
[351691291,1738739526284,-600.0,9.999e-05,2]
[351691292,1738739527452,-600.0,9.999e-05,2]
[351691293,1738739528418,-600.0,9.999e-05,2]
[351691296,1738739570936,300.0,8.256e-05,2]
[351691302,1738740231214,6678.0,8.256e-05,2]
[351691307,1738740336683,7307.80336351,8e-05,2]
[351691309,1738740383044,826.18,8.219e-05,2]
[351691318,1738740549149,-326.2801,8.836e-05,2]
[351691319,1738740549172,-300.0,8.972e-05,2]
[351691320,1738740549194,-975.3001,8.973e-05,2]
[351691321,1738740549217,-5000.0,8.973e-05,2]
[351691322,1738740549239,-250.0,9.115e-05,2]
[351691323,1738740549264,-23900.0,9.211e-05,2]
[351691324,1738740549287,-1048.7,9.287e-05,2]
[351691325,1738740549310,-842.8,9.328e-05,2]
[351691326,1738740549332,-1000.0,9.444e-05,2]
[351691327,1738740549353,-500.0,9.562e-05,2]
[351691328,1738740549375,-169.81,9.748e-05,2]
[351691329,1738740549395,-281.12,9.778e-05,2]
[351691330,1738740549417,-150.0,9.778e-05,2]
[351691331,1738740549438,-150.31,9.778e-05,2]
[351691332,1738740549460,-300.0,9.778e-05,2]
[351691333,1738740549480,-300.0,9.778e-05,2]
[351691334,1738740549502,-150.0,9.778e-05,2]
[351691335,1738740549523,-150.0,9.778e-05,2]
[351691336,1738740549543,-150.0,9.778e-05,2]
[351691337,1738740549564,-150.0,9.778e-05,2]
[351691338,1738740549584,-150.0,9.778e-05,2]
[351691339,1738740549604,-150.0,9.778e-05,2]
[351691340,1738740549624,-3706.49,9.832e-05,2]
[351691341,1738740549645,-420.0,9.869e-05,2]
[351691342,1738740549667,-500.0,9.87e-05,2]
[351691343,1738740549691,-1000.0,9.9e-05,2]
[351691344,1738740549713,-1000.0,9.9e-05,3]
[351691345,1738740549735,-1017.83,9.9e-05,5]
[351691346,1738740549757,-150.0,9.972e-05,2]
[351691347,1738740549778,-501.21143477,9.973e-05,2]
[351691348,1738740549799,-160.33699075,9.973e-05,2]
[351691349,1738740550107,-500.0,9.973e-05,2]
[351691350,1738740550130,-152.51339571,9.973e-05,2]
[351691351,1738740550150,-160.42478597,9.973e-05,2]
[351691352,1738740550170,-151.30684857,9.973e-05,2]
[351691353,1738740550189,-153.189,9.998e-05,2]
[351691354,1738740550209,-3581.353,9.998e-05,2]
[351691355,1738740550230,-500.0,9.999e-05,2]
[351691356,1738740550251,-1250.14,9.999e-05,2]
[351691357,1738740550271,-500.0,9.999e-05,2]
[351691358,1738740550293,-203.08,9.999e-05,2]
[351691359,1738740550316,-500.0,9.999e-05,2]
[351691360,1738740550338,-500.0,9.999e-05,2]
[351691361,1738740550359,-342.44,9.999e-05,2]
[351691362,1738740550380,-500.0,9.999e-05,2]
[351691363,1738740550402,-500.0,9.999e-05,2]
[351691364,1738740550426,-500.0,9.999e-05,2]
[351691365,1738740550450,-392.37,9.999e-05,2]
[351691366,1738740550472,-591.6,9.999e-05,2]
[351691367,1738740550495,-450.15,9.999e-05,2]
[351691368,1738740550517,-500.0,9.999e-05,2]
[351691369,1738740550538,-365.73,9.999e-05,2]
[351691370,1738740550562,-500.0,9.999e-05,2]
[351691371,1738740550584,-406.98968407,9.999e-05,2]
[351691372,1738740550606,-500.0,9.999e-05,2]
[351691373,1738740550627,-257.66,9.999e-05,2]
[351691374,1738740550648,-500.0,9.999e-05,2]
[351691375,1738740550670,-500.0,9.999e-05,2]
[351691376,1738740550692,-500.0,9.999e-05,2]
[351691377,1738740550715,-500.0,9.999e-05,2]
[351691378,1738740550736,-500.0,9.999e-05,2]
[351691379,1738740550758,-314.09,9.999e-05,2]
[351691380,1738740550780,-500.0,9.999e-05,2]
[351691381,1738740550807,-500.0,9.999e-05,2]
[351691382,1738740550829,-595.85,9.999e-05,2]
[351691383,1738740550850,-368.33,9.999e-05,2]
[351691384,1738740550872,-500.0,9.999e-05,2]
[351691385,1738740550898,-483.8,9.999e-05,2]
[351691386,1738740550920,-500.0,9.999e-05,2]
[351691387,1738740550943,-500.0,9.999e-05,2]
[351691388,1738740550967,-500.0,9.999e-05,2]
[351691389,1738740550988,-500.0,9.999e-05,2]
[351691390,1738740551011,-500.0,9.999e-05,2]
[351691391,1738740551034,-331.99,9.999e-05,2]
[351691392,1738740551058,-440.38,9.999e-05,2]
[351691393,1738740551079,-415.78337815,9.999e-05,2]
[351691394,1738740551101,-355.65014134,9.999e-05,2]
[351691395,1738740551125,-8549.63316897,0.0001,2]
[351691396,1738740572442,500.0,8e-05,2]
[351691409,1738740632400,-1015.5157,8.851e-05,2]
[351691410,1738740632410,-391.34,9.33e-05,2]
[351691411,1738740632419,-300.0,9.33e-05,2]
[351691412,1738740632427,-152.64019179,9.973e-05,2]
[351691414,1738740632435,-162.22110821,9.998e-05,2]
[351691416,1738740632446,-137.77889179,9.998e-05,2]
[351691417,1738740632455,-500.0,9.999e-05,2]
[351691418,1738740632463,-500.0,9.999e-05,2]
[351691419,1738740632472,-500.0,9.999e-05,2]
[351691421,1738740632481,-205.04185377,9.999e-05,2]
[351691422,1738740632494,-294.95814623,9.999e-05,2]
[351691424,1738740632503,-427.5841895,9.999e-05,2]
[351691425,1738740632514,-72.4158105,9.999e-05,2]
[351691426,1738740632527,-500.0,9.999e-05,2]
[351691427,1738740632536,-27.27613066,9.999e-05,2]
[351691428,1738740632547,-472.72386934,9.999e-05,2]
[351691429,1738740632556,-265.6141688,9.999e-05,2]
[351691430,1738740632569,-500.0,9.999e-05,2]
[351691431,1738740632578,-500.0,9.999e-05,2]
[351691432,1738740632588,-500.0,9.999e-05,2]
[351691433,1738740632597,-7891.93856184,0.0001,2]
[351691434,1738740632708,-1818.22898211,0.0001,2]
[351691435,1738740632720,-311.0176484,0.0001,2]
[351691436,1738740632732,-6022.04953256,0.0001,2]
[351691437,1738740632744,-543.46441461,0.0001,2]
[351691438,1738740632760,-466.42930039,0.0001,2]
[351691439,1738740632771,-25135.45526936,0.0001,2]
[351691440,1738740632784,-492.18846894,0.0001,2]
[351691996,1738740638367,-500.0,9.999e-05,2]
[351691997,1738740638377,-500.0,9.999e-05,2]
[351691998,1738740638386,-2490.54242994,0.0001,2]
[351691999,1738740638398,-1014.55504234,0.0001,2]
[351692000,1738740638409,-17656.88772292,0.0001,2]
[351692001,1738740638420,-1454.24614478,0.0001,2]
[351692002,1738740638431,-702.48955533,0.0001,2]
[351692003,1738740638442,-1109.76612253,0.0001,2]
[351692006,1738740638509,-500.0,9.999e-05,2]
[351692008,1738740638518,-193.43710831,0.0001,2]
[351692012,1738740638551,-510.0000005,0.0001,2]
[351692157,1738740640517,-500.0,9.999e-05,2]
[351692158,1738740640527,-633.05,0.0001,2]
[351692159,1738740640538,-25068.69526196,0.0001,2]
[351692160,1738740640550,-299.89956351,0.0001,2]
[351692161,1738740640590,-3114.92023122,0.0001,2]
[351692162,1738740640602,-1344.35646541,0.0001,2]
[351692163,1738740640614,-572.197025,0.0001,2]
[351692164,1738740640626,-1949.67498,0.0001,2]
[351692165,1738740640638,-598.51453168,0.0001,2]
[351692230,1738740643545,-500.0,9.999e-05,2]
[351692231,1738740643555,-5730.0,0.0001,2]
[351692232,1738740643566,-4673.24146947,0.0001,2]
[351692233,1738740643594,-3699.52940253,0.0001,2]
[351692234,1738740643606,-272.5839601,0.0001,2]
[351692235,1738740643617,-465.68232761,0.0001,2]
[351692236,1738740643629,-748.0560267,0.0001,2]
[351692237,1738740643640,-625.982,0.0001,2]
[351692238,1738740643652,-589.0474902,0.0001,2]
[351692239,1738740643663,-381.44317147,0.0001,2]
[351692240,1738740643768,-71.16223013,0.0001,2]
[351692249,1738740646489,-188.57438887,9.999e-05,2]
[351692250,1738740646499,-1236.66188623,0.0001,2]
[351692251,1738740646511,-1249.13727,0.0001,2]
[351692252,1738740646524,-2753.26605066,0.0001,2]
[351692253,1738740646802,-514.0089,0.0001,2]
[351692254,1738740646814,-842.57292098,0.0001,2]
[351692260,1738740729335,2219.9005,8.256e-05,2]
[351692261,1738740731284,858.1105,8.699e-05,2]
[351692262,1738740764915,266.4928,8.699e-05,2]
[351692263,1738740770905,23508.59353649,8.699e-05,2]
[351692264,1738740770929,7516.11756351,8.699e-05,2]
[351692265,1738740781926,300.0,8.835e-05,2]
[351692266,1738740795272,3879.866,8.699e-05,2]
[351692267,1738740841906,300.0,8.835e-05,2]
[351692272,1738740961249,300.0,8.835e-05,2]
[351692273,1738740963973,150.0,8.835e-05,2]
[351692274,1738740973294,595.3719,8.699e-05,2]
[351692275,1738740986123,-5404.6281,8.836e-05,2]
[351692276,1738741070764,500.0,8.22e-05,2]
[351692277,1738741142150,150.0,8.835e-05,2]
[351692278,1738741142182,300.0,8.835e-05,2]
[351692279,1738741202036,300.0,8.835e-05,2]
[351692280,1738741204414,828.55,8.822e-05,2]
[351692281,1738741307019,1131.73,8.774e-05,2]
[351692282,1738741322033,150.0,8.835e-05,2]
[351692283,1738741324428,505.75,8.798e-05,2]
[351692284,1738741351772,250.0,8.787e-05,2]
[351692286,1738741382540,300.0,8.835e-05,2]
[351692287,1738741406427,906.57,8.219e-05,2]
[351692288,1738741439696,170.38,8.758e-05,2]
[351692289,1738741441318,300.0,8.835e-05,2]
[351692290,1738741561324,300.0,8.835e-05,2]
[351692299,1738741621265,300.0,8.835e-05,2]
[351692300,1738741642139,-1417.32723388,8.836e-05,2]
[351692301,1738741653090,-273.20508598,8.836e-05,2]
[351692302,1738741658045,200.0,8.679e-05,2]
[351692303,1738741681298,300.0,8.835e-05,2]
[351692304,1738741707450,1000.0,8.7e-05,2]
[351692305,1738741741308,300.0,8.835e-05,2]
[351692306,1738741761121,-3646.77408014,8.836e-05,2]
[351692307,1738741761145,-297.9608,8.836e-05,2]
[351692308,1738741761167,-64866.36005986,8.836e-05,2]
[351692311,1738741792260,27854.33,8.73e-05,2]
[351692313,1738741831720,-219.74407608,8.836e-05,2]
[351692314,1738741831790,-1024.56,8.836e-05,2]
[351692315,1738741831802,-33528.26676406,8.836e-05,2]
[351692316,1738741831812,-315.6435,8.836e-05,2]
[351692317,1738741831822,-278.79741596,8.836e-05,2]
[351692318,1738741831833,-343.0164,8.851e-05,2]
[351692319,1738741831843,-500.0,8.851e-05,2]
[351692320,1738741831854,-10962.23770001,8.851e-05,2]
[351692321,1738741831864,-20058.79128075,8.868e-05,2]
[351692322,1738741831935,-3841.20871925,8.868e-05,2]
[351692323,1738741831946,-150.0,8.877e-05,2]
[351692324,1738741831956,-500.0,8.903e-05,2]
[351692325,1738741831967,-536.6793,8.973e-05,2]
[351692326,1738741831978,-5000.0,8.973e-05,2]
[351692327,1738741831988,-434.22,8.98e-05,2]
[351692328,1738741831999,-161.79,8.98e-05,2]
[351692329,1738741832009,-493.83,9.014e-05,2]
[351692330,1738741832020,-449.9,9.041e-05,2]
[351692357,1738741832385,-13982.69,9.062e-05,2]
[351692360,1738741832407,-1515.62,9.077e-05,2]
[351692363,1738741832423,-174.95,9.086e-05,2]
[351692365,1738741832433,-500.0,9.123e-05,2]
[351692367,1738741832443,-157.0,9.26e-05,2]
[351692369,1738741832452,-200.0,9.368e-05,2]
[351692371,1738741832462,-500.0,9.562e-05,2]
[351692373,1738741832471,-250.0,9.703e-05,2]
[351692375,1738741832481,-500.0,9.719e-05,2]
[351692377,1738741832490,-500.0,9.736e-05,2]
[351692379,1738741832499,-846.21496033,9.781e-05,7]
[351692381,1738741832508,-1000.0,9.787e-05,2]
[351692383,1738741832517,-421.02,9.832e-05,2]
[351692385,1738741832527,-505.75,9.897e-05,2]
[351692387,1738741832537,-1024.37,9.9e-05,2]
[351692389,1738741832547,-500.0,9.972e-05,2]
[351692391,1738741832559,-500.0,9.972e-05,2]
[351692393,1738741832570,-500.0,9.972e-05,2]
[351692395,1738741832579,-500.0,9.972e-05,2]
[351692397,1738741832589,-151.77621427,9.972e-05,2]
[351692399,1738741832599,-500.0,9.972e-05,2]
[351692401,1738741832607,-503.73114294,9.972e-05,2]
[351692403,1738741832616,-389.96679915,9.972e-05,2]
[351692405,1738741832626,-500.0,9.972e-05,2]
[351692407,1738741832635,-500.0,9.972e-05,2]
[351692409,1738741832645,-226.84018853,9.972e-05,2]
[351692411,1738741832655,-329.37780595,9.972e-05,2]
[351692413,1738741832665,-458.53018997,9.972e-05,2]
[351692415,1738741832674,-500.0,9.972e-05,2]
[351692417,1738741832684,-500.0,9.972e-05,2]
[351692419,1738741832693,-203.68127226,9.972e-05,2]
[351692421,1738741832702,-622.15177587,9.972e-05,2]
[351692423,1738741832711,-500.0,9.972e-05,2]
[351692425,1738741832720,-500.0,9.972e-05,2]
[351692427,1738741832729,-249.44,9.972e-05,2]